[Event "Live Chess"]
[Site "Chess.com"]
[Date "2023.05.21"]
[Round "-"]
[White "raminguy"]
[Black "Ian-Morley"]
[Result "1-0"]
[WhiteElo "1948"]
[BlackElo "1002"]
[TimeControl "300"]
[EndTime "23:40:08 PDT"]
[Termination "raminguy won by resignation"]

1. d4 {[%clk 0:04:58.6]} 1... e5 {[%clk 0:04:58.9]} 2. dxe5 {[%clk 0:04:57.2]}
2... Nc6 {[%clk 0:04:58.1]} 3. Nf3 {[%clk 0:04:56.3]} 3... Qe7 {[%clk 0:04:57]}
4. Bg5 {[%clk 0:04:55.9]} 4... Qb4+ {[%clk 0:04:54.3]} 5. Nc3 {[%clk 0:04:55.3]}
5... Qxb2 {[%clk 0:04:53.1]} 6. Bd2 {[%clk 0:04:54.9]} 6... Bb4 {[%clk
0:04:51.4]} 7. Rb1 {[%clk 0:04:53.6]} 7... Qa3 {[%clk 0:04:43.6]} 8. Rb3 {[%clk
0:04:52]} 8... Qa5 {[%clk 0:04:40.4]} 9. a3 {[%clk 0:04:49.4]} 9... Bxc3 {[%clk
0:04:39.1]} 10. Rxc3 {[%clk 0:04:48.1]} 10... Nxe5 {[%clk 0:04:34.2]} 11. Re3
{[%clk 0:04:46.2]} 11... d6 {[%clk 0:04:30.6]} 12. Bxa5 {[%clk 0:04:44]} 12...
b6 {[%clk 0:04:29.7]} 13. Nxe5 {[%clk 0:04:42]} 13... dxe5 {[%clk 0:04:28.4]}
1-0

[Event "Live Chess"]
[Site "Chess.com"]
[Date "2023.05.21"]
[Round "-"]
[White "Shepherds_Pie"]
[Black "LutherSullivan"]
[Result "1-0"]
[WhiteElo "1924"]
[BlackElo "2180"]
[TimeControl "300"]
[EndTime "23:40:18 PDT"]
[Termination "Shepherds_Pie won on time"]

1. c4 {[%clk 0:04:55.4]} 1... Nf6 {[%clk 0:04:58.1]} 2. Nc3 {[%clk 0:04:51]}
2... g6 {[%clk 0:04:57.4]} 3. g3 {[%clk 0:04:49.5]} 3... Bg7 {[%clk 0:04:56]} 4.
Bg2 {[%clk 0:04:47.6]} 4... O-O {[%clk 0:04:55.5]} 5. Nf3 {[%clk 0:04:46.4]}
5... Nc6 {[%clk 0:04:53.5]} 6. O-O {[%clk 0:04:45]} 6... e5 {[%clk 0:04:52]} 7.
d3 {[%clk 0:04:44.1]} 7... d6 {[%clk 0:04:48.7]} 8. Rb1 {[%clk 0:04:42.8]} 8...
a5 {[%clk 0:04:46.1]} 9. a3 {[%clk 0:04:40.3]} 9... Be6 {[%clk 0:04:44.6]} 10.
Nd2 {[%clk 0:04:38.9]} 10... Qd7 {[%clk 0:04:43]} 11. Re1 {[%clk 0:04:37.7]}
11... Bh3 {[%clk 0:04:41.2]} 12. Bh1 {[%clk 0:04:36.6]} 12... Rab8 {[%clk
0:04:35]} 13. b4 {[%clk 0:04:34.5]} 13... axb4 {[%clk 0:04:33.1]} 14. axb4
{[%clk 0:04:33]} 14... Ne7 {[%clk 0:04:32]} 15. b5 {[%clk 0:04:30.3]} 15... c6
{[%clk 0:04:30.6]} 16. bxc6 {[%clk 0:04:27.9]} 16... bxc6 {[%clk 0:04:29.6]} 17.
Rxb8 {[%clk 0:04:26]} 17... Rxb8 {[%clk 0:04:27.3]} 18. Qc2 {[%clk 0:04:24.8]}
18... Qa7 {[%clk 0:04:23.8]} 19. Nde4 {[%clk 0:04:15.1]} 19... Nf5 {[%clk
0:04:16]} 20. e3 {[%clk 0:04:07.3]} 20... d5 {[%clk 0:04:09.8]} 21. Nxf6+ {[%clk
0:04:03.3]} 21... Bxf6 {[%clk 0:04:03.5]} 22. cxd5 {[%clk 0:04:02]} 22... cxd5
{[%clk 0:03:58.3]} 23. Nxd5 {[%clk 0:04:00]} 23... Bg7 {[%clk 0:03:39.7]} 24.
Bd2 {[%clk 0:03:58]} 24... Qa6 {[%clk 0:03:11.2]} 25. Rb1 {[%clk 0:03:53]} 25...
Rxb1+ {[%clk 0:03:02.4]} 26. Qxb1 {[%clk 0:03:50.9]} 26... Bf8 {[%clk
0:02:57.2]} 27. Bf3 {[%clk 0:03:13]} 27... h5 {[%clk 0:02:26.1]} 28. Bc3 {[%clk
0:03:09.5]} 28... Bd6 {[%clk 0:02:09.5]} 29. Nf6+ {[%clk 0:03:02.2]} 29... Kh8
{[%clk 0:02:06]} 30. Ne4 {[%clk 0:02:58.7]} 30... Bg4 {[%clk 0:01:43.4]} 31. Bg2
{[%clk 0:02:50]} 31... Be2 {[%clk 0:01:36.3]} 32. Nxd6 {[%clk 0:02:40.7]} 32...
Qxd6 {[%clk 0:01:31.6]} 33. Qa1 {[%clk 0:02:24.7]} 33... f6 {[%clk 0:01:24.5]}
34. Qa8+ {[%clk 0:02:10.8]} 34... Kg7 {[%clk 0:01:04.8]} 35. Qa7+ {[%clk
0:02:05.8]} 35... Kh6 {[%clk 0:00:51.3]} 36. d4 {[%clk 0:02:04]} 36... exd4
{[%clk 0:00:48]} 37. exd4 {[%clk 0:02:00.7]} 37... g5 {[%clk 0:00:27]} 38. Qa1
{[%clk 0:01:55.7]} 38... h4 {[%clk 0:00:17]} 39. d5 {[%clk 0:01:51.6]} 39...
hxg3 {[%clk 0:00:11.2]} 40. hxg3 {[%clk 0:01:49.9]} 40... Nxg3 {[%clk
0:00:10.7]} 41. fxg3 {[%clk 0:01:39.8]} 41... Qxg3 {[%clk 0:00:10.2]} 42. Qe1
{[%clk 0:01:35.2]} 42... Qe3+ {[%clk 0:00:07.6]} 43. Qf2 {[%clk 0:01:24]} 43...
Qc1+ {[%clk 0:00:06.4]} 44. Kh2 {[%clk 0:01:20.4]} 44... Qxc3 {[%clk 0:00:03.1]}
45. Qxe2 {[%clk 0:01:17.7]} 45... Qd4 {[%clk 0:00:02.2]} 46. Qf3 {[%clk
0:01:15]} 46... g4 {[%clk 0:00:00.7]} 47. Qe4 {[%clk 0:01:12.4]} 1-0

[Event "Live Chess"]
[Site "Chess.com"]
[Date "2023.05.21"]
[Round "-"]
[White "MarkLim1"]
[Black "Crowded_House"]
[Result "1/2-1/2"]
[WhiteElo "1658"]
[BlackElo "1684"]
[TimeControl "300"]
[EndTime "23:40:22 PDT"]
[Termination "Game drawn by repetition"]

1. d4 {[%clk 0:04:59.5]} 1... e6 {[%clk 0:04:59.3]} 2. Nf3 {[%clk 0:04:58.8]}
2... d5 {[%clk 0:04:58.9]} 3. e3 {[%clk 0:04:57.8]} 3... c5 {[%clk 0:04:49.9]}
4. b3 {[%clk 0:04:54.9]} 4... Nc6 {[%clk 0:04:47.5]} 5. Bb2 {[%clk 0:04:54]}
5... Nf6 {[%clk 0:04:41.4]} 6. Nbd2 {[%clk 0:04:52.7]} 6... Bd6 {[%clk
0:04:39.4]} 7. Bd3 {[%clk 0:04:51.8]} 7... O-O {[%clk 0:04:37.6]} 8. O-O {[%clk
0:04:49.8]} 8... Qb6 {[%clk 0:04:36.3]} 9. a3 {[%clk 0:04:47.8]} 9... Bd7 {[%clk
0:04:29.6]} 10. Qe2 {[%clk 0:04:44.7]} 10... cxd4 {[%clk 0:04:25.7]} 11. exd4
{[%clk 0:04:43.6]} 11... Rac8 {[%clk 0:04:14.1]} 12. Rac1 {[%clk 0:04:32.5]}
12... a6 {[%clk 0:04:12.2]} 13. c4 {[%clk 0:04:28.7]} 13... dxc4 {[%clk
0:04:08.8]} 14. Nxc4 {[%clk 0:04:27.8]} 14... Qc7 {[%clk 0:04:02.1]} 15. Nxd6
{[%clk 0:04:26.4]} 15... Qxd6 {[%clk 0:03:59.4]} 16. Rfd1 {[%clk 0:04:19.8]}
16... Na7 {[%clk 0:03:53.3]} 17. Ne5 {[%clk 0:03:54]} 17... Rxc1 {[%clk
0:03:44.3]} 18. Rxc1 {[%clk 0:03:52.5]} 18... Rc8 {[%clk 0:03:35.8]} 19. Rxc8+
{[%clk 0:03:48.3]} 19... Bxc8 {[%clk 0:03:34.4]} 20. h3 {[%clk 0:03:43.3]} 20...
Nc6 {[%clk 0:03:28.4]} 21. Nxc6 {[%clk 0:03:36.3]} 21... Qxc6 {[%clk 0:03:26.6]}
22. a4 {[%clk 0:03:30.2]} 22... Qd5 {[%clk 0:03:13.4]} 23. Bc4 {[%clk
0:03:26.9]} 23... Qd6 {[%clk 0:03:01.7]} 24. Qf3 {[%clk 0:03:04.3]} 24... Qc7
{[%clk 0:02:48.3]} 25. Qe3 {[%clk 0:02:56.3]} 25... Bd7 {[%clk 0:02:42.1]} 26.
Qg5 {[%clk 0:02:54.6]} 26... h6 {[%clk 0:02:22.2]} 27. Qe3 {[%clk 0:02:23.7]}
27... Bc6 {[%clk 0:02:18.4]} 28. Be2 {[%clk 0:02:11.3]} 28... Bd5 {[%clk
0:02:08.2]} 29. Bf3 {[%clk 0:02:06]} 29... Qc6 {[%clk 0:02:04.9]} 30. Bxd5
{[%clk 0:02:01.4]} 30... Nxd5 {[%clk 0:02:03.7]} 31. Qg3 {[%clk 0:01:56.2]}
31... Qc7 {[%clk 0:02:00]} 32. Qxc7 {[%clk 0:01:52.4]} 32... Nxc7 {[%clk
0:01:59.1]} 33. Kf1 {[%clk 0:01:51.7]} 33... Nd5 {[%clk 0:01:57.7]} 34. Ke2
{[%clk 0:01:50.7]} 34... Kf8 {[%clk 0:01:54.2]} 35. g3 {[%clk 0:01:50]} 35...
Ke7 {[%clk 0:01:53.1]} 36. Kd3 {[%clk 0:01:49.3]} 36... Kd6 {[%clk 0:01:47.5]}
37. Ba3+ {[%clk 0:01:45.7]} 37... Kc6 {[%clk 0:01:44.9]} 38. Kc4 {[%clk
0:01:40.5]} 38... Nb6+ {[%clk 0:01:38.3]} 39. Kd3 {[%clk 0:01:39.4]} 39... Nd5
{[%clk 0:01:36.9]} 40. Bf8 {[%clk 0:01:38.2]} 40... g6 {[%clk 0:01:35.2]} 41.
Bxh6 {[%clk 0:01:35.8]} 41... Nf6 {[%clk 0:01:30.7]} 42. Bg5 {[%clk 0:01:28]}
42... Nd5 {[%clk 0:01:26.3]} 43. Be3 {[%clk 0:01:26]} 43... Nf6 {[%clk
0:01:23.2]} 44. g4 {[%clk 0:01:23.1]} 44... Kd5 {[%clk 0:01:22.1]} 45. f3 {[%clk
0:01:16.9]} 45... Ne8 {[%clk 0:01:20.9]} 46. h4 {[%clk 0:01:16]} 46... Ng7
{[%clk 0:01:18.4]} 47. Bh6 {[%clk 0:01:13.6]} 47... Ne8 {[%clk 0:01:15.8]} 48.
h5 {[%clk 0:01:12.7]} 48... gxh5 {[%clk 0:01:08.6]} 49. gxh5 {[%clk 0:01:11.7]}
49... Nf6 {[%clk 0:01:07.9]} 50. Be3 {[%clk 0:01:08.7]} 50... Nxh5 {[%clk
0:01:06.6]} 51. Bd2 {[%clk 0:01:00.5]} 51... Ng7 {[%clk 0:01:05.3]} 52. b4
{[%clk 0:00:59.5]} 52... Nf5 {[%clk 0:01:03.8]} 53. Bc3 {[%clk 0:00:57.8]} 53...
Nd6 {[%clk 0:01:00.3]} 54. Ke3 {[%clk 0:00:54.7]} 54... Nc4+ {[%clk 0:00:58.6]}
55. Kd3 {[%clk 0:00:53.4]} 55... Nd6 {[%clk 0:00:57.5]} 56. Ke3 {[%clk
0:00:52.4]} 56... Nc4+ {[%clk 0:00:56.8]} 57. Kd3 {[%clk 0:00:51.6]} 57... Nd6
{[%clk 0:00:56.5]} 1/2-1/2

[Event "Live Chess"]
[Site "Chess.com"]
[Date "2023.05.21"]
[Round "-"]
[White "Ferrarifan27"]
[Black "CroasArRheun"]
[Result "1-0"]
[WhiteElo "2055"]
[BlackElo "1838"]
[TimeControl "300"]
[EndTime "23:40:23 PDT"]
[Termination "Ferrarifan27 won by resignation"]

1. e4 {[%clk 0:04:58.9]} 1... e5 {[%clk 0:04:58.8]} 2. Nf3 {[%clk 0:04:57.6]}
2... Nc6 {[%clk 0:04:57.8]} 3. Bb5 {[%clk 0:04:56.4]} 3... a6 {[%clk 0:04:56.7]}
4. Ba4 {[%clk 0:04:54.8]} 4... Nf6 {[%clk 0:04:55.2]} 5. O-O {[%clk 0:04:52.9]}
5... Be7 {[%clk 0:04:53.2]} 6. Re1 {[%clk 0:04:51.8]} 6... b5 {[%clk 0:04:52]}
7. Bb3 {[%clk 0:04:50.5]} 7... d6 {[%clk 0:04:50.8]} 8. c3 {[%clk 0:04:49]} 8...
O-O {[%clk 0:04:47.9]} 9. h3 {[%clk 0:04:47.5]} 9... Nb8 {[%clk 0:04:46.2]} 10.
d4 {[%clk 0:04:46.1]} 10... exd4 {[%clk 0:04:41.2]} 11. cxd4 {[%clk 0:04:44.7]}
11... Nbd7 {[%clk 0:04:40.8]} 12. e5 {[%clk 0:04:36.1]} 12... dxe5 {[%clk
0:04:37.8]} 13. dxe5 {[%clk 0:04:35.2]} 13... Ne8 {[%clk 0:04:31.3]} 14. e6
{[%clk 0:04:23.7]} 14... fxe6 {[%clk 0:04:13.7]} 15. Rxe6 {[%clk 0:04:21.9]}
15... Nc5 {[%clk 0:04:09.8]} 16. Rd6+ {[%clk 0:04:12.7]} 16... Nxb3 {[%clk
0:04:05]} 17. Rxd8 {[%clk 0:04:11.6]} 17... Nxa1 {[%clk 0:03:58.5]} 18. Qd5+
{[%clk 0:04:08.9]} 18... Kh8 {[%clk 0:03:55.2]} 19. Qxa8 {[%clk 0:04:07.1]}
19... Bxd8 {[%clk 0:03:53.3]} 20. Qxc8 {[%clk 0:04:05.9]} 20... Nd6 {[%clk
0:03:50.4]} 21. Qxa6 {[%clk 0:04:03.6]} 1-0

[Event "Live Chess"]
[Site "Chess.com"]
[Date "2023.05.21"]
[Round "-"]
[White "chessfiction"]
[Black "f4nomore"]
[Result "1-0"]
[WhiteElo "2346"]
[BlackElo "1434"]
[TimeControl "300"]
[EndTime "23:40:38 PDT"]
[Termination "chessfiction won by checkmate"]

1. e4 {[%clk 0:04:58.7]} 1... g6 {[%clk 0:04:59.6]} 2. d4 {[%clk 0:04:58.6]}
2... Bg7 {[%clk 0:04:57.8]} 3. Bc4 {[%clk 0:04:58.2]} 3... e6 {[%clk 0:04:55.3]}
4. Nc3 {[%clk 0:04:56.5]} 4... Ne7 {[%clk 0:04:52.5]} 5. Nf3 {[%clk 0:04:55.8]}
5... O-O {[%clk 0:04:51.2]} 6. h4 {[%clk 0:04:54.3]} 6... h5 {[%clk 0:04:48.6]}
7. g4 {[%clk 0:04:51.9]} 7... d5 {[%clk 0:04:46.8]} 8. Bd3 {[%clk 0:04:50.5]}
8... dxe4 {[%clk 0:04:38]} 9. Nxe4 {[%clk 0:04:50.4]} 9... f5 {[%clk 0:04:34.5]}
10. Neg5 {[%clk 0:04:45.2]} 10... fxg4 {[%clk 0:04:29.7]} 11. Ne5 {[%clk
0:04:43.1]} 11... Qxd4 {[%clk 0:04:12.3]} 12. Qe2 {[%clk 0:04:31.2]} 12... Qxe5
{[%clk 0:04:07]} 13. Be3 {[%clk 0:04:30.2]} 13... Nbc6 {[%clk 0:03:54.4]} 14. c3
{[%clk 0:04:28.5]} 14... Nd5 {[%clk 0:03:39.1]} 15. O-O-O {[%clk 0:04:22.2]}
15... Nxe3 {[%clk 0:03:19.4]} 16. fxe3 {[%clk 0:04:22.1]} 16... Bd7 {[%clk
0:03:06.6]} 17. Bxg6 {[%clk 0:04:18.3]} 17... Qa5 {[%clk 0:02:47.5]} 18. Rxd7
{[%clk 0:04:13.4]} 18... Qxa2 {[%clk 0:02:43.2]} 19. Bb1 {[%clk 0:04:07.6]}
19... Qa6 {[%clk 0:02:22.6]} 20. Qc2 {[%clk 0:04:00.4]} 20... Ne5 {[%clk
0:02:12.3]} 21. Qh7# {[%clk 0:03:58.6]} 1-0

[Event "Live Chess"]
[Site "Chess.com"]
[Date "2023.05.21"]
[Round "-"]
[White "Nazarenko_vital"]
[Black "jbooth"]
[Result "0-1"]
[WhiteElo "1622"]
[BlackElo "1697"]
[TimeControl "300"]
[EndTime "23:40:41 PDT"]
[Termination "jbooth won on time"]

1. e4 {[%clk 0:04:53.6]} 1... d6 {[%clk 0:04:58.3]} 2. d4 {[%clk 0:04:52.1]}
2... Nf6 {[%clk 0:04:57.6]} 3. Bd3 {[%clk 0:04:45.7]} 3... Nbd7 {[%clk
0:04:56.9]} 4. Ne2 {[%clk 0:04:41.1]} 4... e5 {[%clk 0:04:55.6]} 5. d5 {[%clk
0:04:38.9]} 5... c6 {[%clk 0:04:54.6]} 6. Bg5 {[%clk 0:04:38]} 6... Be7 {[%clk
0:04:53]} 7. Bxf6 {[%clk 0:04:36.9]} 7... Bxf6 {[%clk 0:04:50.8]} 8. Nbc3 {[%clk
0:04:34.6]} 8... h6 {[%clk 0:04:45.6]} 9. O-O {[%clk 0:04:28]} 9... Qc7 {[%clk
0:04:44.3]} 10. dxc6 {[%clk 0:04:26.9]} 10... bxc6 {[%clk 0:04:42.2]} 11. f4
{[%clk 0:04:18.8]} 11... Nc5 {[%clk 0:04:34.2]} 12. f5 {[%clk 0:03:57.9]} 12...
Nxd3 {[%clk 0:04:19]} 13. Qxd3 {[%clk 0:03:56.6]} 13... Qb6+ {[%clk 0:04:10.5]}
14. Kh1 {[%clk 0:03:55.7]} 14... Be7 {[%clk 0:04:06.4]} 15. b3 {[%clk
0:03:48.4]} 15... a5 {[%clk 0:03:37.3]} 16. Qg3 {[%clk 0:03:43.1]} 16... Bf6
{[%clk 0:03:27.4]} 17. Rad1 {[%clk 0:03:40]} 17... Qc7 {[%clk 0:03:09.2]} 18.
Na4 {[%clk 0:03:32.2]} 18... O-O {[%clk 0:03:05]} 19. Qe3 {[%clk 0:03:06.3]}
19... Ba6 {[%clk 0:03:01]} 20. Rfe1 {[%clk 0:03:02.7]} 20... Bxe2 {[%clk
0:02:47]} 21. Qxe2 {[%clk 0:02:52.4]} 21... Rfd8 {[%clk 0:02:46]} 22. Rd3 {[%clk
0:02:44.7]} 22... d5 {[%clk 0:02:38.3]} 23. exd5 {[%clk 0:02:34.6]} 23... cxd5
{[%clk 0:02:36.3]} 24. Rg3 {[%clk 0:02:00.3]} 24... Rd6 {[%clk 0:02:03.1]} 25.
Qh5 {[%clk 0:01:30.9]} 25... Kh7 {[%clk 0:02:00.3]} 26. Qe2 {[%clk 0:01:19.3]}
26... Qe7 {[%clk 0:01:58.2]} 27. c4 {[%clk 0:00:47.6]} 27... dxc4 {[%clk
0:01:41.7]} 28. Qxc4 {[%clk 0:00:45.7]} 28... Rad8 {[%clk 0:01:38.1]} 29. h3
{[%clk 0:00:43.9]} 29... Rd1 {[%clk 0:01:29.5]} 30. Re3 {[%clk 0:00:38.5]} 30...
Bg5 {[%clk 0:01:20.4]} 31. Re2 {[%clk 0:00:25.7]} 31... Bf4 {[%clk 0:01:14.6]}
32. Qc2 {[%clk 0:00:08.8]} 32... Rxe1+ {[%clk 0:01:09.5]} 33. Rxe1 {[%clk
0:00:06.2]} 33... f6 {[%clk 0:01:07.9]} 34. Nb6 {[%clk 0:00:01.7]} 34... Qd6
{[%clk 0:01:00.5]} 0-1

[Event "Live Chess"]
[Site "Chess.com"]
[Date "2023.05.21"]
[Round "-"]
[White "tpm07"]
[Black "YrrriKharkiv"]
[Result "0-1"]
[WhiteElo "1924"]
[BlackElo "2043"]
[TimeControl "300"]
[EndTime "23:40:51 PDT"]
[Termination "YrrriKharkiv won by resignation"]

1. e4 {[%clk 0:04:55.8]} 1... Nf6 {[%clk 0:04:56.9]} 2. Nc3 {[%clk 0:04:54.4]}
2... d5 {[%clk 0:04:55.3]} 3. e5 {[%clk 0:04:51.5]} 3... Nfd7 {[%clk 0:04:54.4]}
4. e6 {[%clk 0:04:50.6]} 4... fxe6 {[%clk 0:04:53.1]} 5. d4 {[%clk 0:04:46.8]}
5... c5 {[%clk 0:04:50.8]} 6. Nf3 {[%clk 0:04:45]} 6... Nc6 {[%clk 0:04:48.3]}
7. Be3 {[%clk 0:04:38.1]} 7... cxd4 {[%clk 0:04:44]} 8. Bxd4 {[%clk 0:04:35.1]}
8... Nf6 {[%clk 0:04:41]} 9. Bb5 {[%clk 0:04:28.3]} 9... Bd7 {[%clk 0:04:25.7]}
10. Bxc6 {[%clk 0:04:26.5]} 10... bxc6 {[%clk 0:04:25.3]} 11. O-O {[%clk
0:04:17.4]} 11... g6 {[%clk 0:04:07.2]} 12. Na4 {[%clk 0:04:15.7]} 12... Bg7
{[%clk 0:04:02.6]} 13. Nc5 {[%clk 0:04:14.1]} 13... O-O {[%clk 0:03:59.2]} 14.
Ne5 {[%clk 0:04:13.4]} 14... Qc7 {[%clk 0:03:37.5]} 15. Re1 {[%clk 0:04:06.7]}
15... Bc8 {[%clk 0:03:25.7]} 16. c3 {[%clk 0:03:53.1]} 16... Rb8 {[%clk
0:03:21.6]} 17. b4 {[%clk 0:03:45.9]} 17... Ne8 {[%clk 0:03:20.8]} 18. Qa4
{[%clk 0:03:36]} 18... Rb6 {[%clk 0:03:12.7]} 19. Rf1 {[%clk 0:03:21.3]} 19...
Bxe5 {[%clk 0:03:07.6]} 0-1

[Event "Live Chess"]
[Site "Chess.com"]
[Date "2023.05.21"]
[Round "-"]
[White "elephantgerrald"]
[Black "seasidecastle27"]
[Result "0-1"]
[WhiteElo "575"]
[BlackElo "1778"]
[TimeControl "300"]
[EndTime "23:41:16 PDT"]
[Termination "seasidecastle27 won by checkmate"]

1. e4 {[%clk 0:04:57.6]} 1... d6 {[%clk 0:04:57.8]} 2. d4 {[%clk 0:04:56.2]}
2... e5 {[%clk 0:04:54]} 3. d5 {[%clk 0:04:53.7]} 3... f5 {[%clk 0:04:51.3]} 4.
exf5 {[%clk 0:04:51.9]} 4... Bxf5 {[%clk 0:04:49.1]} 5. Nf3 {[%clk 0:04:49.9]}
5... Nf6 {[%clk 0:04:47.3]} 6. Nc3 {[%clk 0:04:45.1]} 6... Be7 {[%clk
0:04:45.9]} 7. Bg5 {[%clk 0:04:43.6]} 7... O-O {[%clk 0:04:42.7]} 8. Bxf6 {[%clk
0:04:42.3]} 8... Bxf6 {[%clk 0:04:40.8]} 9. Be2 {[%clk 0:04:41.1]} 9... Nd7
{[%clk 0:04:32.8]} 10. O-O {[%clk 0:04:38.8]} 10... Qe7 {[%clk 0:04:21.9]} 11.
Nb5 {[%clk 0:04:33.6]} 11... Nb6 {[%clk 0:04:13.4]} 12. c4 {[%clk 0:04:26.6]}
12... a6 {[%clk 0:04:10.2]} 13. Nc3 {[%clk 0:04:24.1]} 13... Nd7 {[%clk
0:04:08.2]} 14. b3 {[%clk 0:04:22.3]} 14... Nc5 {[%clk 0:04:05.3]} 15. h3 {[%clk
0:04:15.6]} 15... Rae8 {[%clk 0:04:01.7]} 16. g4 {[%clk 0:03:58.7]} 16... Bc8
{[%clk 0:03:47.7]} 17. Bd3 {[%clk 0:03:52.9]} 17... Nxd3 {[%clk 0:03:39.5]} 18.
Qxd3 {[%clk 0:03:50.9]} 18... e4 {[%clk 0:03:38.6]} 19. Nxe4 {[%clk 0:03:39.2]}
19... Qxe4 {[%clk 0:03:33.5]} 20. Qxe4 {[%clk 0:03:37.8]} 20... Rxe4 {[%clk
0:03:31]} 21. Rfe1 {[%clk 0:03:34.2]} 21... Rxe1+ {[%clk 0:03:08.3]} 22. Rxe1
{[%clk 0:03:32]} 22... Bd7 {[%clk 0:03:06.7]} 23. g5 {[%clk 0:03:22.9]} 23...
Bc3 {[%clk 0:03:03.8]} 24. Re3 {[%clk 0:03:21.3]} 24... Bxh3 {[%clk 0:02:52]}
25. Nh4 {[%clk 0:03:06.6]} 25... Bd4 {[%clk 0:02:45.2]} 26. Rxh3 {[%clk
0:03:00]} 26... Rxf2 {[%clk 0:02:38.7]} 27. Kh1 {[%clk 0:02:55.1]} 27... Rxa2
{[%clk 0:02:29.1]} 28. g6 {[%clk 0:02:51.5]} 28... hxg6 {[%clk 0:02:20.3]} 29.
Nxg6 {[%clk 0:02:49.8]} 29... Kf7 {[%clk 0:02:02.4]} 30. Nh8+ {[%clk 0:02:43.4]}
30... Kf6 {[%clk 0:01:58.2]} 31. Rf3+ {[%clk 0:02:34.1]} 31... Kg5 {[%clk
0:01:46.7]} 32. Nf7+ {[%clk 0:02:30.9]} 32... Kg4 {[%clk 0:01:43.2]} 33. Rd3
{[%clk 0:02:20.5]} 33... Bc5 {[%clk 0:01:32.4]} 34. b4 {[%clk 0:01:55.6]} 34...
Bxb4 {[%clk 0:01:27.6]} 35. Rd4+ {[%clk 0:01:54]} 35... Kg3 {[%clk 0:01:21.8]}
36. Rd3+ {[%clk 0:01:51.4]} 36... Kf4 {[%clk 0:01:18.5]} 37. Rd4+ {[%clk
0:01:47.6]} 37... Ke3 {[%clk 0:01:15.3]} 38. Rd1 {[%clk 0:01:44]} 38... Ke2
{[%clk 0:01:05.5]} 39. Rg1 {[%clk 0:01:39.2]} 39... Bc3 {[%clk 0:01:01.2]} 40.
Rg2+ {[%clk 0:01:37]} 40... Kd3 {[%clk 0:00:54.7]} 41. Rxa2 {[%clk 0:01:34.6]}
41... Kxc4 {[%clk 0:00:53.8]} 42. Rc2 {[%clk 0:01:31]} 42... b5 {[%clk
0:00:51.4]} 43. Nd8 {[%clk 0:01:26.4]} 43... b4 {[%clk 0:00:49.2]} 44. Nb7
{[%clk 0:01:24.2]} 44... b3 {[%clk 0:00:46.3]} 45. Na5+ {[%clk 0:01:21.5]} 45...
Kb4 {[%clk 0:00:42.3]} 46. Nc6+ {[%clk 0:01:20.2]} 46... Kc4 {[%clk 0:00:38.2]}
47. Na5+ {[%clk 0:01:17.3]} 47... Kd3 {[%clk 0:00:35.7]} 48. Rc1 {[%clk
0:01:09]} 48... b2 {[%clk 0:00:32.8]} 49. Rb1 {[%clk 0:01:03.4]} 49... Kc2
{[%clk 0:00:30.1]} 50. Nc4 {[%clk 0:00:58.7]} 50... Kxb1 {[%clk 0:00:27.4]} 51.
Na3+ {[%clk 0:00:57.4]} 51... Ka2 {[%clk 0:00:25.5]} 52. Kg2 {[%clk 0:00:53.9]}
52... Kxa3 {[%clk 0:00:24.2]} 53. Kf3 {[%clk 0:00:52.9]} 53... b1=Q {[%clk
0:00:22.8]} 54. Kf4 {[%clk 0:00:51.4]} 54... Qe1 {[%clk 0:00:21.7]} 55. Kf5
{[%clk 0:00:49.9]} 55... Be5 {[%clk 0:00:19.9]} 56. Kg6 {[%clk 0:00:48.5]} 56...
Qg3+ {[%clk 0:00:18.4]} 57. Kh7 {[%clk 0:00:47.3]} 57... Qg5 {[%clk 0:00:16.7]}
58. Kg8 {[%clk 0:00:45.9]} 58... Qe7 {[%clk 0:00:15.1]} 59. Kh8 {[%clk 0:00:44]}
59... g5+ {[%clk 0:00:14]} 60. Kg8 {[%clk 0:00:40.4]} 60... Qg7# {[%clk
0:00:12.8]} 0-1

[Event "Live Chess"]
[Site "Chess.com"]
[Date "2023.05.21"]
[Round "-"]
[White "Nazar_777"]
[Black "amazinggoalkeeper"]
[Result "1-0"]
[WhiteElo "1600"]
[BlackElo "514"]
[TimeControl "300"]
[EndTime "23:41:27 PDT"]
[Termination "Nazar_777 won by resignation"]

1. e3 {[%clk 0:04:51.3]} 1... e5 {[%clk 0:04:39.8]} 2. h4 {[%clk 0:04:50]} 2...
f5 {[%clk 0:04:38.9]} 3. a3 {[%clk 0:04:49.4]} 3... d5 {[%clk 0:04:38]} 4. c4
{[%clk 0:04:48.5]} 4... Nf6 {[%clk 0:04:33]} 5. Nc3 {[%clk 0:04:47.2]} 5... d4
{[%clk 0:04:31.8]} 6. Nd5 {[%clk 0:04:42.2]} 6... Nxd5 {[%clk 0:04:30.7]} 7.
cxd5 {[%clk 0:04:41.3]} 7... Qxd5 {[%clk 0:04:27.8]} 8. Qc2 {[%clk 0:04:40.1]}
8... c5 {[%clk 0:04:20.8]} 9. Nf3 {[%clk 0:04:36.9]} 9... e4 {[%clk 0:04:19.7]}
10. Ng5 {[%clk 0:04:34.2]} 10... h6 {[%clk 0:04:16.3]} 11. Nh3 {[%clk
0:04:32.5]} 11... d3 {[%clk 0:04:12.2]} 12. Qa4+ {[%clk 0:04:26]} 12... Bd7
{[%clk 0:04:06.7]} 13. Qd1 {[%clk 0:04:24.4]} 13... Nc6 {[%clk 0:03:55.9]} 14.
Nf4 {[%clk 0:04:23.1]} 14... Qe5 {[%clk 0:03:53.3]} 15. Rb1 {[%clk 0:04:21.3]}
15... g5 {[%clk 0:03:48.7]} 16. Ng6 {[%clk 0:04:19.9]} 16... Qg7 {[%clk
0:03:43.4]} 17. Nxh8 {[%clk 0:04:18]} 17... Qxh8 {[%clk 0:03:42.8]} 18. hxg5
{[%clk 0:04:15.9]} 18... Qg7 {[%clk 0:03:42.2]} 19. Qh5+ {[%clk 0:04:11]} 19...
Ke7 {[%clk 0:03:37.6]} 20. g6 {[%clk 0:04:09.5]} 20... Be8 {[%clk 0:03:32]} 21.
Qxh6 {[%clk 0:04:03.2]} 21... Qxh6 {[%clk 0:03:29.7]} 22. Rxh6 {[%clk
0:04:01.9]} 22... Bxh6 {[%clk 0:03:29.6]} 23. b3 {[%clk 0:04:00.6]} 23... Bxg6
{[%clk 0:03:26.8]} 24. Bb2 {[%clk 0:03:58.6]} 24... Rd8 {[%clk 0:03:20.4]} 25.
g3 {[%clk 0:03:56.5]} 25... b5 {[%clk 0:03:19.1]} 26. Bg2 {[%clk 0:03:55.1]}
26... a5 {[%clk 0:03:16.6]} 27. Bc3 {[%clk 0:03:53.2]} 27... b4 {[%clk
0:03:15.6]} 28. axb4 {[%clk 0:03:51.3]} 28... axb4 {[%clk 0:03:14.9]} 29. Bb2
{[%clk 0:03:48.7]} 29... Ne5 {[%clk 0:03:09.7]} 30. Bxe5 {[%clk 0:03:45.7]}
30... Ke6 {[%clk 0:03:08.8]} 31. Bf4 {[%clk 0:03:43.1]} 31... Bxf4 {[%clk
0:03:06.9]} 32. gxf4 {[%clk 0:03:42.2]} 32... Rh8 {[%clk 0:02:56.4]} 33. f3
{[%clk 0:03:37.6]} 33... Rh2 {[%clk 0:02:46.2]} 34. Kf2 {[%clk 0:03:35.2]} 34...
exf3 {[%clk 0:02:43.2]} 35. Kxf3 {[%clk 0:03:32.1]} 35... Bh5+ {[%clk
0:02:41.5]} 36. Kg3 {[%clk 0:03:31.1]} 36... Rxg2+ {[%clk 0:02:33.1]} 37. Kxg2
{[%clk 0:03:29.4]} 37... Kd5 {[%clk 0:02:28.3]} 38. Rh1 {[%clk 0:03:22]} 38...
Bg4 {[%clk 0:02:24.7]} 39. Kf2 {[%clk 0:03:18.6]} 39... Ke4 {[%clk 0:02:22.8]}
40. Rh8 {[%clk 0:03:16.1]} 40... Kd5 {[%clk 0:02:20.3]} 41. Rd8+ {[%clk
0:03:14.3]} 41... Kc6 {[%clk 0:02:18.5]} 42. Re8 {[%clk 0:03:11.5]} 42... Kd5
{[%clk 0:02:16.6]} 43. Re5+ {[%clk 0:03:09.5]} 43... Kd6 {[%clk 0:02:13.8]} 44.
Kg3 {[%clk 0:03:08.3]} 44... Kc6 {[%clk 0:02:10.3]} 45. e4 {[%clk 0:03:07.1]}
45... Kb5 {[%clk 0:02:05.2]} 46. exf5 {[%clk 0:03:05.5]} 46... Bxf5 {[%clk
0:01:59.7]} 47. Rxf5 {[%clk 0:03:04.2]} 1-0